{"text_format":"1","workbook":"xlsx","n_sheets":10,"sheets":["Qu'est-ce que le Cahier","PRET","Inventaire des changements","Tableau des contributeurs","Plan intégré de GdP-GdC - Guide","Plan intégré de GdP-GdC","Suivi des activités de GdC","PRET Eval","Liste de données PRET","Liste de données Plan intégré"],"not_rendered":{"charts":0,"images":3,"macros":1,"external_links":1,"defined_names":7,"comments":0,"pivot_tables":0},"unopened":[],"bounds":{"document_bytes":16777216,"sheet_cells":100000,"rows_first":2000,"rows_last":500,"rows_between":2000,"halvings":0,"cell_chars":16384,"cell_head_chars":4096},"cells_cut":0,"cells_raw":0,"read":"whole","date_system":"1900"}

{"sheet":"Qu'est-ce que le Cahier","index":0,"n_rows":0,"n_cols":0,"rows_kept":0,"cut":false,"hidden":false,"merged":[]}

{"sheet":"PRET","index":1,"n_rows":133,"n_cols":7,"rows_kept":133,"cut":false,"hidden":false,"merged":[[130,0,130,1],[130,2,130,5],[131,0,131,1],[131,2,131,5],[132,0,132,1],[132,2,132,5],[127,0,127,1],[127,2,127,5],[128,0,128,1],[128,2,128,5],[129,0,129,1],[129,2,129,5],[124,0,124,1],[124,2,124,5],[125,0,125,1],[125,2,125,5],[126,0,126,1],[126,2,126,5],[121,0,121,1],[121,2,121,5],[122,0,122,1],[122,2,122,5],[123,0,123,1],[123,2,123,5],[118,0,118,1],[118,2,118,5],[119,0,119,1],[119,2,119,5],[120,0,120,1],[120,2,120,5],[115,0,115,1],[115,2,115,5],[116,0,116,1],[116,2,116,5],[117,0,117,1],[117,2,117,5],[112,0,112,1],[112,2,112,5],[113,0,113,1],[113,2,113,5],[114,0,114,1],[114,2,114,5],[109,0,109,1],[109,2,109,5],[110,0,110,1],[110,2,110,5],[111,0,111,1],[111,2,111,5],[106,0,106,1],[106,2,106,5],[107,0,107,1],[107,2,107,5],[108,0,108,1],[108,2,108,5],[103,0,103,1],[103,2,103,5],[104,0,104,1],[104,2,104,5],[105,0,105,1],[105,2,105,5],[98,0,98,6],[99,2,99,4],[100,2,100,4],[101,0,101,6],[102,1,102,4],[93,0,93,6],[94,0,94,6],[95,2,95,4],[96,2,96,4],[97,0,97,6],[88,2,88,4],[89,0,89,6],[90,0,90,6],[91,2,91,4],[92,2,92,4],[83,2,83,4],[84,0,84,6],[85,0,85,6],[86,0,86,6],[87,2,87,4],[78,2,78,4],[79,2,79,4],[80,0,80,6],[81,0,81,6],[82,2,82,4],[73,0,73,6],[74,2,74,4],[75,2,75,4],[76,0,76,6],[77,0,77,6],[68,0,68,6],[69,0,69,6],[70,2,70,4],[71,2,71,4],[72,0,72,6],[59,0,59,6],[60,0,60,6],[61,0,61,6],[62,0,62,6],[63,0,63,6],[64,0,64,6],[66,0,66,6],[67,1,67,4],[55,4,57,4],[55,5,57,5],[55,6,57,6],[57,1,57,2],[58,0,58,6],[51,4,53,4],[51,5,53,5],[51,6,53,6],[53,1,53,2],[54,0,54,2],[47,4,49,4],[47,5,49,5],[47,6,49,6],[48,1,48,2],[49,1,49,2],[39,6,41,6],[41,1,41,2],[42,0,42,2],[43,1,43,2],[43,3,45,3],[43,4,45,4],[43,5,45,5],[43,6,45,6],[45,1,45,2],[46,0,46,2],[47,1,47,2],[47,3,49,3],[38,0,38,2],[39,1,39,2],[39,3,41,3],[39,4,41,4],[39,5,41,5],[31,6,33,6],[33,1,33,2],[34,0,34,2],[35,1,35,2],[35,3,37,3],[35,4,37,4],[35,5,37,5],[35,6,37,6],[36,1,36,2],[37,1,37,2],[40,1,40,2],[11,5,13,5],[11,6,13,6],[12,1,12,2],[13,1,13,2],[23,3,25,3],[23,4,25,4],[23,5,25,5],[23,6,25,6],[24,1,24,2],[25,1,25,2],[19,3,21,3],[19,4,21,4],[19,5,21,5],[19,6,21,6],[20,1,20,2],[21,1,21,2],[11,3,13,3],[11,4,13,4],[7,1,7,2],[10,0,10,2],[11,1,11,2],[14,0,14,2],[15,1,15,2],[18,0,18,2],[19,1,19,2],[51,1,51,2],[51,3,53,3],[55,1,55,2],[55,3,57,3],[15,3,17,3],[15,4,17,4],[15,5,17,5],[15,6,17,6],[16,1,16,2],[17,1,17,2],[22,0,22,2],[23,1,23,2],[30,0,30,2],[31,1,31,2],[31,3,33,3],[31,4,33,4],[31,5,33,5],[27,3,29,3],[27,4,29,4],[27,5,29,5],[27,6,29,6],[28,1,28,2],[29,1,29,2],[32,1,32,2],[135,0,135,6],[65,0,65,6],[0,0,0,6],[1,1,1,4],[2,2,2,4],[3,2,3,4],[4,0,4,6],[9,1,9,2],[5,3,6,3],[5,4,6,4],[5,5,6,5],[5,6,6,6],[6,0,6,2],[26,0,26,2],[27,1,27,2],[44,1,44,2],[52,1,52,2],[56,1,56,2],[7,3,9,3],[7,4,9,4],[7,5,9,5],[7,6,9,6],[8,1,8,2],[50,0,50,2]]}
["Outil d'évaluation de la réalisation du projet (PRET)"]
[]
[null,"Organisation: "]
[null,"Emplacement du projet:  "]
["Ressources clés du projet "]
[null,null,null,"Capacité à soutenir le projet","Niveau d'influence","Niveau d'intérêt","Support pour le projet "]
["Gestionnaire de projet/Responsable de la gestion des locaux"]
["Nom"]
["Titre"]
["courriel"]
["Parrain du projet"]
["Nom"]
["Titre"]
["courriel"]
["Parrain exécutif"]
["Nom"]
["Titre"]
["courriel"]
["Gestionnaire du changement"]
["Nom"]
["Titre"]
["courriel"]
["Représentant des communications"]
["Nom"]
["Titre"]
["courriel"]
["Représentant de la gestion des locaux/designer"]
["Nom"]
["Titre"]
["courriel"]
["Représentant de la GI"]
["Nom"]
["Titre"]
["courriel"]
["Représentant en informatique "]
["Nom"]
["Titre"]
["courriel"]
["Représentant des RH"]
["Nom"]
["Titre"]
["courriel"]
["Représentant de la sécurité"]
["Nom"]
["Titre"]
["courriel"]
["Représentant de SST"]
["Nom"]
["Titre"]
["courriel"]
["Groupe d'employés autochtones"]
["Nom de la personne contact principale "]
["Titre"]
["courriel"]
["Groupe d'employés « Diversité, équité et inclusion »"]
["Nom de la personne contact principale "]
["Titre"]
["courriel"]
["Vision organisationnelle et de projet"]
["Quelle est la vision de votre organisation concernant l'avenir du travail et/ou la modernisation du milieu de travail ? Insérez la ci-dessous. "]
[]
["Quelle est la vision de votre organisation pour le projet de transformation du milieu de travail ? Insérez la ci-dessous."]
[]
["Quel est le modèle de travail hybride choisi par votre organisation ? Insérer le ci-dessous."]
[]
[]
["État de préparation à la gestion de projet"]
[]
["Parrainage"]
["La stratégie de milieu de travail de notre organisation est soutenue par un parrain de projet qui peut être actif et visible tout au long du projet. Le parrain du projet a l’autorité nécessaire sur les personnes, les processus et les systèmes pour autoriser et financer les changements nécessaires. "]
[]
[]
["Cadres supérieurs"]
["Les cadres supérieurs de notre organisation ont fait de la modernisation du milieu de travail une priorité. Ils sont prêts à communiquer ce changement dans le contexte d’autres priorités concurrentes et sont prêts à passer à la parole. "]
[]
[]
["Secteurs habilitants "]
["Notre organisation a élaboré une stratégie de modernisation du milieu de travail et dispose des ressources nécessaires pour mettre en œuvre la stratégie, y compris des parrains exécutifs, un intégrateur de projet et des experts en la matière. "]
[]
[]
["Gestion du changement, communication et formation"]
["Notre organisation dispose d’une approche structurée de gestion du changement pour le projet et a identifié des ressources formées pour la gestion du changement. Des ressources sont disponibles pour fournir des conseils en communication, élaborer des produits de communication et offrir de la formation aux employés. "]
[]
[]
["État de préparation au changement"]
["Historique du changement"]
["Notre organisation a eu du succès avec des changements précédents, les employés ont bien accueilli les changements passés et ne sont pas revenus aux anciennes méthodes. "]
[]
[]
["Culture d'innovation "]
["Notre organisation est ouverte aux nouvelles idées et à l’innovation, les employés sont récompensés pour la prise de risques et l’acceptation du changement. "]
[]
[]
["Cadres supérieurs et gestionnaires de personnel"]
["Les cadres supérieurs et les gestionnaires de personnel de notre organisation sont hautement qualifiés pour gérer le changement, le rendement est évalué en fonction des résultats et non en fonction de la présence des employés. "]
[]
[]
["Travail hybride"]
["Notre organisation encourage, habilite et est confiante en nos employés afin qu’ils fassent des choix sensés sur le moment, l’endroit et la façon dont ils travaillent. Le travail à distance (c.-à-d. le télétravail) est appuyé par des politiques, des ententes et/ou d’autres mécanismes. "]
[]
[]
["Initiatives des secteurs habilitants"]
[]
["Secteur habilitant",null,"Initiatives des secteurs habilitants",null,null,null,"Status"]
["Technologie de l'information (TI)",null,"Accès réseau secret/classifié"]
["Technologie de l'information (TI)",null,"Impression sur demande"]
["Technologie de l'information (TI)",null,"Équipement audiovisuel (vidéoconférence, Clickshare, etc.)"]
["Technologie de l'information (TI)",null,"Outils et plateformes de collaboration (MS Teams, Miro, Slack, etc.)"]
["Technologie de l'information (TI)",null,"Applications via téléphones (ascenseur, carte d’accès, système de réservation, etc.)"]
["Technologie de l'information (TI)",null,"Système de réservation "]
["Technologie de l'information (TI)",null,"Outils et logiciels cloud (Microsoft 365, OneDrive, etc.)"]
["Technologie de l'information (TI)",null,"Wi-Fi : privé et/ou public"]
["Ressources humaines (RH)",null,"Politiques et directives adaptées au travail hybride"]
["Ressources humaines (RH)",null,"Normes communautaires / chartes d’équipe"]
["Ressources humaines (RH)",null,"SST : Affectation des secouristes"]
["Ressources humaines (RH)",null,"Entente de travail provisoire / entente de télétravail"]
["Ressources humaines (RH)",null,"Gérer les employés dans un modèle de travail hybride"]
["Ressources humaines (RH)",null,"Intégration des nouveaux employés dans un environnement de travail hybride"]
["Gestion de l'information (GI)",null,"Numérisation (réduction de l’espace de stockage du papier)"]
["Gestion de l'information (GI)",null,"Services d’imagerie"]
["Gestion de l'information (GI)",null,"Mise en œuvre d’un système de gestion de l’information (GCdocs, SharePoint, EDRMS, OneDrive, etc.)"]
["Gestion de l'information (GI)",null,"Numérisation des processus "]
["Securité",null,"Procédures d’urgence"]
["Securité",null,"Système de carte d’accès"]
["Securité",null,"Travailler avec des informations protégées / confidentielles dans un espace partagé"]
["Securité",null,"Attribution du rôle d’agent de sécurité incendie"]
["Gestion des installations et design",null,"Accès et travail dans un écosystème d’espaces "]
["Gestion des installations et design",null,"Milieu de travail axé sur les activités : bureaux partagés "]
["Gestion des installations et design",null,"Milieu de travail axé sur les activités: variété de points de travail"]
["Gestion des installations et design",null,"Milieu de travail axé sur les activités: zones de travail"]
["Gestion des installations et design",null,"Ergonomie, accessibilité et inclusivité dans tous les points de travail"]
["Gestion des installations et design",null,"Bureau intelligent (lumières, régulation de la température, stores automatiques, etc.)"]
["Gestion des installations et design",null,"Utilisation de casiers journaliers"]

{"sheet":"Inventaire des changements","index":2,"n_rows":38,"n_cols":8,"rows_kept":38,"cut":false,"hidden":false,"merged":[[0,0,0,7],[8,0,8,1],[8,2,8,5],[9,0,9,1],[9,2,9,5],[10,0,10,1],[10,2,10,5],[11,0,11,1],[11,2,11,5],[12,0,12,1],[12,2,12,5],[13,0,13,1],[13,2,13,5],[14,0,14,1],[14,2,14,5],[15,0,15,1],[15,2,15,5],[16,0,16,1],[16,2,16,5],[17,0,17,1],[17,2,17,5],[18,0,18,1],[18,2,18,5],[19,0,19,1],[19,2,19,5],[20,0,20,1],[20,2,20,5],[21,0,21,1],[21,2,21,5],[22,0,22,1],[22,2,22,5],[23,0,23,1],[23,2,23,5],[24,0,24,1],[24,2,24,5],[25,0,25,1],[25,2,25,5],[26,0,26,1],[26,2,26,5],[27,0,27,1],[27,2,27,5],[28,0,28,1],[28,2,28,5],[29,0,29,1],[29,2,29,5],[30,0,30,1],[30,2,30,5],[31,0,31,1],[31,2,31,5],[32,0,32,1],[32,2,32,5],[33,0,33,1],[33,2,33,5],[37,0,37,1],[37,2,37,5],[34,0,34,1],[34,2,34,5],[35,0,35,1],[35,2,35,5],[36,0,36,1],[36,2,36,5]]}
["Inventaire des changements et évaluation des répercussions"]
[]
[]
[]
[]
[]
[]
[]
["Secteur habilitant",null,"Initiatives des secteurs habilitants",null,null,null,{"$f":"PRET!G104","v":"Status"},"Répercussions"]
[{"$f":"PRET!A105","v":"Technologie de l'information (TI)"},null,{"$f":"PRET!C105","v":"Accès réseau secret/classifié"},null,null,null,{"$f":"PRET!G105","v":0},"Basses"]
[{"$f":"PRET!A106","v":"Technologie de l'information (TI)"},null,{"$f":"PRET!C106","v":"Impression sur demande"},null,null,null,{"$f":"PRET!G106","v":0},"Basses"]
[{"$f":"PRET!A107","v":"Technologie de l'information (TI)"},null,{"$f":"PRET!C107","v":"Équipement audiovisuel (vidéoconférence, Clickshare, etc.)"},null,null,null,{"$f":"PRET!G107","v":0},"Moyennes "]
[{"$f":"PRET!A108","v":"Technologie de l'information (TI)"},null,{"$f":"PRET!C108","v":"Outils et plateformes de collaboration (MS Teams, Miro, Slack, etc.)"},null,null,null,{"$f":"PRET!G108","v":0},"Moyennes "]
[{"$f":"PRET!A109","v":"Technologie de l'information (TI)"},null,{"$f":"PRET!C109","v":"Applications via téléphones (ascenseur, carte d’accès, système de réservation, etc.)"},null,null,null,{"$f":"PRET!G109","v":0},"Moyennes "]
[{"$f":"PRET!A110","v":"Technologie de l'information (TI)"},null,{"$f":"PRET!C110","v":"Système de réservation "},null,null,null,{"$f":"PRET!G110","v":0},"Moyennes "]
[{"$f":"PRET!A111","v":"Technologie de l'information (TI)"},null,{"$f":"PRET!C111","v":"Outils et logiciels cloud (Microsoft 365, OneDrive, etc.)"},null,null,null,{"$f":"PRET!G111","v":0},"Moyennes "]
[{"$f":"PRET!A112","v":"Technologie de l'information (TI)"},null,{"$f":"PRET!C112","v":"Wi-Fi : privé et/ou public"},null,null,null,{"$f":"PRET!G112","v":0},"Basses"]
[{"$f":"PRET!A113","v":"Ressources humaines (RH)"},null,{"$f":"PRET!C113","v":"Politiques et directives adaptées au travail hybride"},null,null,null,{"$f":"PRET!G113","v":0},"Élevées"]
[{"$f":"PRET!A114","v":"Ressources humaines (RH)"},null,{"$f":"PRET!C114","v":"Normes communautaires / chartes d’équipe"},null,null,null,{"$f":"PRET!G114","v":0},"Moyennes "]
[{"$f":"PRET!A115","v":"Ressources humaines (RH)"},null,{"$f":"PRET!C115","v":"SST : Affectation des secouristes"},null,null,null,{"$f":"PRET!G115","v":0},"Basses"]
[{"$f":"PRET!A116","v":"Ressources humaines (RH)"},null,{"$f":"PRET!C116","v":"Entente de travail provisoire / entente de télétravail"},null,null,null,{"$f":"PRET!G116","v":0},"Élevées"]
[{"$f":"PRET!A117","v":"Ressources humaines (RH)"},null,{"$f":"PRET!C117","v":"Gérer les employés dans un modèle de travail hybride"},null,null,null,{"$f":"PRET!G117","v":0},"Élevées"]
[{"$f":"PRET!A118","v":"Ressources humaines (RH)"},null,{"$f":"PRET!C118","v":"Intégration des nouveaux employés dans un environnement de travail hybride"},null,null,null,{"$f":"PRET!G118","v":0},"Basses"]
[{"$f":"PRET!A119","v":"Gestion de l'information (GI)"},null,{"$f":"PRET!C119","v":"Numérisation (réduction de l’espace de stockage du papier)"},null,null,null,{"$f":"PRET!G119","v":0},"Moyennes "]
[{"$f":"PRET!A120","v":"Gestion de l'information (GI)"},null,{"$f":"PRET!C120","v":"Services d’imagerie"},null,null,null,{"$f":"PRET!G120","v":0},"Basses"]
[{"$f":"PRET!A121","v":"Gestion de l'information (GI)"},null,{"$f":"PRET!C121","v":"Mise en œuvre d’un système de gestion de l’information (GCdocs, SharePoint, EDRMS, OneDrive, etc.)"},null,null,null,{"$f":"PRET!G121","v":0},"Élevées"]
[{"$f":"PRET!A122","v":"Gestion de l'information (GI)"},null,{"$f":"PRET!C122","v":"Numérisation des processus "},null,null,null,{"$f":"PRET!G122","v":0},"Moyennes "]
[{"$f":"PRET!A123","v":"Securité"},null,{"$f":"PRET!C123","v":"Procédures d’urgence"},null,null,null,{"$f":"PRET!G123","v":0},"Basses"]
[{"$f":"PRET!A124","v":"Securité"},null,{"$f":"PRET!C124","v":"Système de carte d’accès"},null,null,null,{"$f":"PRET!G124","v":0},"Basses"]
[{"$f":"PRET!A125","v":"Securité"},null,{"$f":"PRET!C125","v":"Travailler avec des informations protégées / confidentielles dans un espace partagé"},null,null,null,{"$f":"PRET!G125","v":0},"Basses"]
[{"$f":"PRET!A126","v":"Securité"},null,{"$f":"PRET!C126","v":"Attribution du rôle d’agent de sécurité incendie"},null,null,null,{"$f":"PRET!G126","v":0},"Moyennes "]
[{"$f":"PRET!A127","v":"Gestion des installations et design"},null,{"$f":"PRET!C127","v":"Accès et travail dans un écosystème d’espaces "},null,null,null,{"$f":"PRET!G127","v":0},"Moyennes "]
[{"$f":"PRET!A128","v":"Gestion des installations et design"},null,{"$f":"PRET!C128","v":"Milieu de travail axé sur les activités : bureaux partagés "},null,null,null,{"$f":"PRET!G128","v":0},"Élevées"]
[{"$f":"PRET!A129","v":"Gestion des installations et design"},null,{"$f":"PRET!C129","v":"Milieu de travail axé sur les activités: variété de points de travail"},null,null,null,{"$f":"PRET!G129","v":0},"Moyennes "]
[{"$f":"PRET!A130","v":"Gestion des installations et design"},null,{"$f":"PRET!C130","v":"Milieu de travail axé sur les activités: zones de travail"},null,null,null,{"$f":"PRET!G130","v":0},"Moyennes "]
[{"$f":"PRET!A131","v":"Gestion des installations et design"},null,{"$f":"PRET!C131","v":"Ergonomie, accessibilité et inclusivité dans tous les points de travail"},null,null,null,{"$f":"PRET!G131","v":0},"Basses"]
[{"$f":"PRET!A132","v":"Gestion des installations et design"},null,{"$f":"PRET!C132","v":"Bureau intelligent (lumières, régulation de la température, stores automatiques, etc.)"},null,null,null,{"$f":"PRET!G132","v":0},"Basses"]
[{"$f":"PRET!A133","v":"Gestion des installations et design"},null,{"$f":"PRET!C133","v":"Utilisation de casiers journaliers"},null,null,null,{"$f":"PRET!G133","v":0},"Moyennes "]

{"sheet":"Tableau des contributeurs","index":3,"n_rows":18,"n_cols":9,"rows_kept":18,"cut":false,"hidden":false,"merged":[[0,0,0,8]]}
["Tableau des contributeurs"]
[]
[]
[]
[]
[]
[]
[]
["Groupe de contributeurs","#ETPs \n(employés à temps plein)","Type de contributeur","Niveau d'influence ","Niveau d'intérêt ","Soutien pour le projet","Opportunitées","Défis/Barrières","Première/Prochaine action  "]
["Cadres supérieurs (SM, SMA, DG et Directeurs) ",null,"Parrains (P)","Élevé","Élevé","Neutre",null,null,"Utilisez le « Modèle de communication pour annoncer le projet aux cadres supérieurs » "]
["Gestionnaires de personnel",null,"Parrains (P)","Moyen","Élevé","Neutre",null,null,"Utilisez le « Modèle de communication pour annoncer le projet aux cadres supérieurs » "]
["Employés de la Branche 1",null,"Concernés (C)","Bas","Élevé","Neutre",null,null,"Utilisez le « Modèle de communication pour annoncer le projet aux employés » une fois qu’il a été annoncé aux cadres supérieurs et aux gestionnaires de personnel"]
["Employés de la Branche 2",null,"Concernés (C)","Bas","Élevé","Neutre",null,null,"Utilisez le « Modèle de communication pour annoncer le projet aux employés » une fois qu’il a été annoncé aux cadres supérieurs et aux gestionnaires de personnel"]
["Employés de la Branche 3",null,"Concernés (C)","Bas","Élevé","Neutre",null,null,"Utilisez le « Modèle de communication pour annoncer le projet aux employés » une fois qu’il a été annoncé aux cadres supérieurs et aux gestionnaires de personnel"]
["Gestionnaires de personnel hors-site (d'employés concernés) ",null,"Concernés indirectement (CI)  ","Moyen","Moyen","Neutre",null,null,"Utilisez le « Modèle de communication pour annoncer le projet aux cadres supérieurs » "]
["Union(s)",null,"Concernés indirectement (CI)  ","Élevé","Élevé","Neutre",null,null,"Présentez votre projet de PTMdT à votre(vos) syndicat(s) le plus tôt que possible dans le processus et tenez-les informés avec des mises à jour régulières. "]
["Canadiens",null,"Concernés indirectement (CI)  ","Bas","Bas","Neutre",null,null,"Tenez ce contributeur informé, en particulier sur les impacts directs sur eux, c’est-à-dire si votre adresse change, si les processus sont mis à jour, etc. [contenu non inclus dans la boîte car il est spécifique à chaque organisation]"]
["Contributeurs externes / ‘Clients’ ",null,"Concernés indirectement (CI)  ","Bas","Bas","Neutre",null,null,"Tenez ce contributeur informé, en particulier sur les impacts directs sur eux, c’est-à-dire si votre adresse change, si les processus sont mis à jour, etc. [contenu non inclus dans la boîte car il est spécifique à chaque organisation]"]

{"sheet":"Plan intégré de GdP-GdC - Guide","index":4,"n_rows":0,"n_cols":0,"rows_kept":0,"cut":false,"hidden":false,"merged":[]}

{"sheet":"Plan intégré de GdP-GdC","index":5,"n_rows":110,"n_cols":68,"rows_kept":110,"cut":false,"hidden":false,"merged":[[0,0,0,8],[2,0,2,67],[6,0,7,11],[0,9,0,17],[0,18,0,26],[0,27,0,35],[0,36,0,44],[0,45,0,53],[0,54,0,62],[0,63,0,67]]}
["Plan intégré de gestion de projet/gestion du changement"]
[]
["Nom du client‒Nom du projet\nAdresse"]
["Conçu par: xxxx",null,null,null,null,null,null,null,null,null,"Légende:",null,"Non commencé",null,null,null,null,null,null,"En bonne voie",null,null,null,null,null,null,"Retardé",null,null,null,null,"En retard",null,null,null,null,"Terminé"]
[null,null,null,null,null,"Date de début du projet:",null,null,"2022-08-01"]
[null,null,null,null,null,"Incrément de défilement",null,null,0,null,null,null,{"$f":"TEXT(M7,\"mmmm\")","v":"August"},null,null,null,null,null,null,{"$f":"IF(TEXT(T7,\"mmmm\")=M6,\"\",TEXT(T7,\"mmmm\"))","v":""},null,null,null,null,null,null,{"$f":"IF(OR(TEXT(AA7,\"mmmm\")=T6,TEXT(AA7,\"mmmm\")=M6),\"\",TEXT(AA7,\"mmmm\"))","v":""},null,null,null,null,null,null,{"$f":"IF(OR(TEXT(AH7,\"mmmm\")=AA6,TEXT(AH7,\"mmmm\")=T6,TEXT(AH7,\"mmmm\")=M6),\"\",TEXT(AH7,\"mmmm\"))","v":""},null,null,null,null,null,null,{"$f":"IF(OR(TEXT(AO7,\"mmmm\")=AH6,TEXT(AO7,\"mmmm\")=AA6,TEXT(AO7,\"mmmm\")=T6,TEXT(AO7,\"mmmm\")=M6),\"\",TEXT(AO7,\"mmmm\"))","v":""},null,null,null,null,null,null,{"$f":"IF(OR(TEXT(AV7,\"mmmm\")=AO6,TEXT(AV7,\"mmmm\")=AH6,TEXT(AV7,\"mmmm\")=AA6,TEXT(AV7,\"mmmm\")=T6),\"\",TEXT(AV7,\"mmmm\"))","v":"September"},null,null,null,null,null,null,{"$f":"IF(OR(TEXT(BC7,\"mmmm\")=AV6,TEXT(BC7,\"mmmm\")=AO6,TEXT(BC7,\"mmmm\")=AH6,TEXT(BC7,\"mmmm\")=AA6),\"\",TEXT(BC7,\"mmmm\"))","v":""},null,null,null,null,null,null,{"$f":"IF(OR(TEXT(BJ7,\"mmmm\")=BC6,TEXT(BJ7,\"mmmm\")=AV6,TEXT(BJ7,\"mmmm\")=AO6,TEXT(BJ7,\"mmmm\")=AH6),\"\",TEXT(BJ7,\"mmmm\"))","v":""}]
[" \nDate : xx-xx-xx",null,null,null,null,null,null,null,null,null,null,null,{"$f":"IFERROR(Project_Start+Scrolling_Increment,TODAY())","v":"2022-08-01"},{"$f":"M7+1","v":"2022-08-02"},{"$f":"N7+1","v":"2022-08-03"},"2022-08-04","2022-08-05","2022-08-06","2022-08-07",{"$f":"S7+1","v":"2022-08-08"},{"$f":"T7+1","v":"2022-08-09"},"2022-08-10","2022-08-11","2022-08-12","2022-08-13","2022-08-14",{"$f":"Z7+1","v":"2022-08-15"},{"$f":"AA7+1","v":"2022-08-16"},"2022-08-17","2022-08-18","2022-08-19","2022-08-20","2022-08-21",{"$f":"AG7+1","v":"2022-08-22"},{"$f":"AH7+1","v":"2022-08-23"},"2022-08-24","2022-08-25","2022-08-26","2022-08-27","2022-08-28",{"$f":"AN7+1","v":"2022-08-29"},{"$f":"AO7+1","v":"2022-08-30"},"2022-08-31","2022-09-01","2022-09-02","2022-09-03","2022-09-04",{"$f":"AU7+1","v":"2022-09-05"},{"$f":"AV7+1","v":"2022-09-06"},"2022-09-07","2022-09-08","2022-09-09","2022-09-10","2022-09-11",{"$f":"BB7+1","v":"2022-09-12"},{"$f":"BC7+1","v":"2022-09-13"},{"$f":"BD7+1","v":"2022-09-14"},"2022-09-15","2022-09-16","2022-09-17","2022-09-18",{"$f":"BI7+1","v":"2022-09-19"},{"$f":"BJ7+1","v":"2022-09-20"},{"$f":"BK7+1","v":"2022-09-21"},"2022-09-22","2022-09-23","2022-09-24",{"$f":"BO7+1","v":"2022-09-25"}]
[]
["Phase du projet","Type d'activité","Activité","Responsable","Remarques","État ","Progrès","Date de début","Date de fin","Date de fin réelle","Jours",null,{"$f":"LEFT(TEXT(M7,\"ddd\"),1)","v":"M"},"T","W","T","F","S","S","M","T","W","T","F","S","S","M","T","W","T","F","S","S","M","T","W","T","F","S","S","M","T","W","T","F","S","S","M","T","W","T","F","S","S","M","T","W","T","F","S","S","M","T","W","T","F","S","S"]
[]
["Plannification","Engagement","Exemple d'activité","John Doe",null,"Retardé",0.8,"2022-08-01","2022-08-14",null,{"$f":"IF(Milestones[[#This Row],[Date de début]]=\"\",1,(Milestones[[#This Row],[Date de fin]]-Milestones[[#This Row],[Date de début]]))","v":13}]
["Plannification","Programme de GdC","Cahier de travail de la GdC",null,null,"Non commencé",0,null,null,null,{"$f":"IF(Milestones[[#This Row],[Date de début]]=\"\",1,(Milestones[[#This Row],[Date de fin]]-Milestones[[#This Row],[Date de début]]))","v":1}]
["Plannification","Programme de GdC","Stratégie de la GdC",null,null,"Non commencé",0,null,null,null,{"$f":"IF(Milestones[[#This Row],[Date de début]]=\"\",1,(Milestones[[#This Row],[Date de fin]]-Milestones[[#This Row],[Date de début]]))","v":1}]
["Plannification","Communication","Annonce du projet",null,null,"Non commencé",0,null,null,null,{"$f":"IF(Milestones[[#This Row],[Date de début]]=\"\",1,(Milestones[[#This Row],[Date de fin]]-Milestones[[#This Row],[Date de début]]))","v":1}]
["Plannification","Mobilisation","Séance d'information ouverte avec les employés",null,null,"Non commencé",0,null,null,null,{"$f":"IF(Milestones[[#This Row],[Date de début]]=\"\",1,(Milestones[[#This Row],[Date de fin]]-Milestones[[#This Row],[Date de début]]))","v":1}]
["Plannification","Communication","Invitation pour le sondage sur la programmation fonctionnelle",null,null,"Non commencé",0,null,null,null,{"$f":"IF(Milestones[[#This Row],[Date de début]]=\"\",1,(Milestones[[#This Row],[Date de fin]]-Milestones[[#This Row],[Date de début]]))","v":1}]
["Plannification","Mobilisation","Retrait des biens professionnels et personnels",null,null,"Non commencé",0,null,null,null,{"$f":"IF(Milestones[[#This Row],[Date de début]]=\"\",1,(Milestones[[#This Row],[Date de fin]]-Milestones[[#This Row],[Date de début]]))","v":1}]
["Plannification","Mobilisation","Réseau d’agents du changement",null,null,"Non commencé",0,null,null,null,{"$f":"IF(Milestones[[#This Row],[Date de début]]=\"\",1,(Milestones[[#This Row],[Date de fin]]-Milestones[[#This Row],[Date de début]]))","v":1}]
["Plannification","Communication","Canaux de communication et contenu",null,null,"Non commencé",0,null,null,null,{"$f":"IF(Milestones[[#This Row],[Date de début]]=\"\",1,(Milestones[[#This Row],[Date de fin]]-Milestones[[#This Row],[Date de début]]))","v":1}]
["Mise en œuvre ","Formation","Boîte à outils du gestionnaire",null,null,"Non commencé",0,null,null,null,{"$f":"IF(Milestones[[#This Row],[Date de début]]=\"\",1,(Milestones[[#This Row],[Date de fin]]-Milestones[[#This Row],[Date de début]]))","v":1}]
["Mise en œuvre ","Communication","Annonce des plans d'étage ",null,null,"Non commencé",0,null,null,null,{"$f":"IF(Milestones[[#This Row],[Date de début]]=\"\",1,(Milestones[[#This Row],[Date de fin]]-Milestones[[#This Row],[Date de début]]))","v":1}]
["Mise en œuvre ","Mobilisation","Dénomination des salles de conférence",null,null,"Non commencé",0,null,null,null,{"$f":"IF(Milestones[[#This Row],[Date de début]]=\"\",1,(Milestones[[#This Row],[Date de fin]]-Milestones[[#This Row],[Date de début]]))","v":1}]
["Mise en œuvre ","Formation","Présentation « une journée dans la vie »",null,null,"Non commencé",0,null,null,null,{"$f":"IF(Milestones[[#This Row],[Date de début]]=\"\",1,(Milestones[[#This Row],[Date de fin]]-Milestones[[#This Row],[Date de début]]))","v":1}]
["Mise en œuvre ","Mobilisation","Normes communautaires pour le nouveau milieu de travail (étiquette)",null,null,"Non commencé",0,null,null,null,{"$f":"IF(Milestones[[#This Row],[Date de début]]=\"\",1,(Milestones[[#This Row],[Date de fin]]-Milestones[[#This Row],[Date de début]]))","v":1}]
["Mise en œuvre ","Mobilisation","Chartes d'équipe",null,null,"Non commencé",0,null,null,null,{"$f":"IF(Milestones[[#This Row],[Date de début]]=\"\",1,(Milestones[[#This Row],[Date de fin]]-Milestones[[#This Row],[Date de début]]))","v":1}]
["Mise en œuvre ","Formation","Contenu de formation",null,null,"Non commencé",0,null,null,null,{"$f":"IF(Milestones[[#This Row],[Date de début]]=\"\",1,(Milestones[[#This Row],[Date de fin]]-Milestones[[#This Row],[Date de début]]))","v":1}]
["Mise en œuvre ","Communication","Annonces de pré-ouverture",null,null,"Non commencé",0,null,null,null,{"$f":"IF(Milestones[[#This Row],[Date de début]]=\"\",1,(Milestones[[#This Row],[Date de fin]]-Milestones[[#This Row],[Date de début]]))","v":1}]
["Mise en œuvre ","Formation","Boîte à outils de l’employé/guide de l’utilisateur",null,null,"Non commencé",0,null,null,null,{"$f":"IF(Milestones[[#This Row],[Date de début]]=\"\",1,(Milestones[[#This Row],[Date de fin]]-Milestones[[#This Row],[Date de début]]))","v":1}]
["Mise en œuvre ","Mobilisation","Séance d’information ouverte de pré-ouverture",null,null,"Non commencé",0,null,null,null,{"$f":"IF(Milestones[[#This Row],[Date de début]]=\"\",1,(Milestones[[#This Row],[Date de fin]]-Milestones[[#This Row],[Date de début]]))","v":1}]
["Mise en œuvre ","Mobilisation","Visite du nouveau milieu de travail",null,null,"Non commencé",0,null,null,null,{"$f":"IF(Milestones[[#This Row],[Date de début]]=\"\",1,(Milestones[[#This Row],[Date de fin]]-Milestones[[#This Row],[Date de début]]))","v":1}]
["Mise en œuvre ","Mobilisation","Cérémonie d'ouverture hybride",null,null,"Non commencé",0,null,null,null,{"$f":"IF(Milestones[[#This Row],[Date de début]]=\"\",1,(Milestones[[#This Row],[Date de fin]]-Milestones[[#This Row],[Date de début]]))","v":1}]
["Mise en œuvre ","Communication","Communication (en continu)",null,null,"Non commencé",0,null,null,null,{"$f":"IF(Milestones[[#This Row],[Date de début]]=\"\",1,(Milestones[[#This Row],[Date de fin]]-Milestones[[#This Row],[Date de début]]))","v":1}]
["Après l'aménagement","Communication","Communiqués sur le maintien du changement",null,null,"Non commencé",0,null,null,null,{"$f":"IF(Milestones[[#This Row],[Date de début]]=\"\",1,(Milestones[[#This Row],[Date de fin]]-Milestones[[#This Row],[Date de début]]))","v":1}]
["Après l'aménagement","Communication","Collection d’histoires de projet de SPAC",null,null,"Non commencé",0,null,null,null,{"$f":"IF(Milestones[[#This Row],[Date de début]]=\"\",1,(Milestones[[#This Row],[Date de fin]]-Milestones[[#This Row],[Date de début]]))","v":1}]
["Après l'aménagement","Communication","Invitation pour le sondage sur la performance du milieu de travail",null,null,"Non commencé",0,null,null,null,{"$f":"IF(Milestones[[#This Row],[Date de début]]=\"\",1,(Milestones[[#This Row],[Date de fin]]-Milestones[[#This Row],[Date de début]]))","v":1}]
["Après l'aménagement","Formation","Formations de mise à jour\n(en continu)",null,null,"Non commencé",0,null,null,null,{"$f":"IF(Milestones[[#This Row],[Date de début]]=\"\",1,(Milestones[[#This Row],[Date de fin]]-Milestones[[#This Row],[Date de début]]))","v":1}]
["Après l'aménagement","Programme de GdC","Liste de contrôle du maintien de la GdC",null,null,"Non commencé",0,null,null,null,{"$f":"IF(Milestones[[#This Row],[Date de début]]=\"\",1,(Milestones[[#This Row],[Date de fin]]-Milestones[[#This Row],[Date de début]]))","v":1}]
["Mise en œuvre ","Programme de GdP","Accès réseau secret/classifié",null,null,"Non commencé",0,null,null,null,{"$f":"IF(Milestones[[#This Row],[Date de début]]=\"\",1,(Milestones[[#This Row],[Date de fin]]-Milestones[[#This Row],[Date de début]]))","v":1}]
["Mise en œuvre ","Programme de GdP","Impression sur demande",null,null,"Non commencé",0,null,null,null,{"$f":"IF(Milestones[[#This Row],[Date de début]]=\"\",1,(Milestones[[#This Row],[Date de fin]]-Milestones[[#This Row],[Date de début]]))","v":1}]
["Mise en œuvre ","Programme de GdP","Équipement audiovisuel (vidéoconférence, Clickshare, etc.)",null,null,"Non commencé",0,null,null,null,{"$f":"IF(Milestones[[#This Row],[Date de début]]=\"\",1,(Milestones[[#This Row],[Date de fin]]-Milestones[[#This Row],[Date de début]]))","v":1}]
["Mise en œuvre ","Programme de GdP","Outils et plateformes de collaboration (MS Teams, Miro, Slack, etc.)",null,null,"Non commencé",0,null,null,null,{"$f":"IF(Milestones[[#This Row],[Date de début]]=\"\",1,(Milestones[[#This Row],[Date de fin]]-Milestones[[#This Row],[Date de début]]))","v":1}]
["Mise en œuvre ","Programme de GdP","Applications via téléphones (ascenseur, carte d’accès, système de réservation, etc.)",null,null,"Non commencé",0,null,null,null,{"$f":"IF(Milestones[[#This Row],[Date de début]]=\"\",1,(Milestones[[#This Row],[Date de fin]]-Milestones[[#This Row],[Date de début]]))","v":1}]
["Mise en œuvre ","Programme de GdP","Système de réservation ",null,null,"Non commencé",0,null,null,null,{"$f":"IF(Milestones[[#This Row],[Date de début]]=\"\",1,(Milestones[[#This Row],[Date de fin]]-Milestones[[#This Row],[Date de début]]))","v":1}]
["Mise en œuvre ","Programme de GdP","Outils et logiciels cloud (Microsoft 365, OneDrive, etc.)",null,null,"Non commencé",0,null,null,null,{"$f":"IF(Milestones[[#This Row],[Date de début]]=\"\",1,(Milestones[[#This Row],[Date de fin]]-Milestones[[#This Row],[Date de début]]))","v":1}]
["Mise en œuvre ","Programme de GdP","Wi-Fi : privé et/ou public",null,null,"Non commencé",0,null,null,null,{"$f":"IF(Milestones[[#This Row],[Date de début]]=\"\",1,(Milestones[[#This Row],[Date de fin]]-Milestones[[#This Row],[Date de début]]))","v":1}]
["Mise en œuvre ","Programme de GdP","Politiques et directives adaptées au travail hybride",null,null,"Non commencé",0,null,null,null,{"$f":"IF(Milestones[[#This Row],[Date de début]]=\"\",1,(Milestones[[#This Row],[Date de fin]]-Milestones[[#This Row],[Date de début]]))","v":1}]
["Mise en œuvre ","Programme de GdP","Normes communautaires / chartes d’équipe",null,null,"Non commencé",0,null,null,null,{"$f":"IF(Milestones[[#This Row],[Date de début]]=\"\",1,(Milestones[[#This Row],[Date de fin]]-Milestones[[#This Row],[Date de début]]))","v":1}]
["Mise en œuvre ","Programme de GdP","SST : Affectation des secouristes",null,null,"Non commencé",0,null,null,null,{"$f":"IF(Milestones[[#This Row],[Date de début]]=\"\",1,(Milestones[[#This Row],[Date de fin]]-Milestones[[#This Row],[Date de début]]))","v":1}]
["Mise en œuvre ","Programme de GdP","Entente de travail provisoire / entente de télétravail",null,null,"Non commencé",0,null,null,null,{"$f":"IF(Milestones[[#This Row],[Date de début]]=\"\",1,(Milestones[[#This Row],[Date de fin]]-Milestones[[#This Row],[Date de début]]))","v":1}]
["Mise en œuvre ","Programme de GdP","Gérer les employés dans un modèle de travail hybride",null,null,"Non commencé",0,null,null,null,{"$f":"IF(Milestones[[#This Row],[Date de début]]=\"\",1,(Milestones[[#This Row],[Date de fin]]-Milestones[[#This Row],[Date de début]]))","v":1}]
["Mise en œuvre ","Programme de GdP","Intégration des nouveaux employés dans un environnement de travail hybride",null,null,"Non commencé",0,null,null,null,{"$f":"IF(Milestones[[#This Row],[Date de début]]=\"\",1,(Milestones[[#This Row],[Date de fin]]-Milestones[[#This Row],[Date de début]]))","v":1}]
["Mise en œuvre ","Programme de GdP","Numérisation (réduction de l’espace de stockage du papier)",null,null,"Non commencé",0,null,null,null,{"$f":"IF(Milestones[[#This Row],[Date de début]]=\"\",1,(Milestones[[#This Row],[Date de fin]]-Milestones[[#This Row],[Date de début]]))","v":1}]
["Mise en œuvre ","Programme de GdP","Services d’imagerie",null,null,"Non commencé",0,null,null,null,{"$f":"IF(Milestones[[#This Row],[Date de début]]=\"\",1,(Milestones[[#This Row],[Date de fin]]-Milestones[[#This Row],[Date de début]]))","v":1}]
["Mise en œuvre ","Programme de GdP","Mise en œuvre d’un système de gestion de l’information (GCdocs, SharePoint, EDRMS, OneDrive, etc.)",null,null,"Non commencé",0,null,null,null,{"$f":"IF(Milestones[[#This Row],[Date de début]]=\"\",1,(Milestones[[#This Row],[Date de fin]]-Milestones[[#This Row],[Date de début]]))","v":1}]
["Mise en œuvre ","Programme de GdP","Numérisation des processus ",null,null,"Non commencé",0,null,null,null,{"$f":"IF(Milestones[[#This Row],[Date de début]]=\"\",1,(Milestones[[#This Row],[Date de fin]]-Milestones[[#This Row],[Date de début]]))","v":1}]
["Mise en œuvre ","Programme de GdP","Procédures d’urgence",null,null,"Non commencé",0,null,null,null,{"$f":"IF(Milestones[[#This Row],[Date de début]]=\"\",1,(Milestones[[#This Row],[Date de fin]]-Milestones[[#This Row],[Date de début]]))","v":1}]
["Mise en œuvre ","Programme de GdP","Système de carte d’accès",null,null,"Non commencé",0,null,null,null,{"$f":"IF(Milestones[[#This Row],[Date de début]]=\"\",1,(Milestones[[#This Row],[Date de fin]]-Milestones[[#This Row],[Date de début]]))","v":1}]
["Mise en œuvre ","Programme de GdP","Travailler avec des informations protégées / confidentielles dans un espace partagé",null,null,"Non commencé",0,null,null,null,{"$f":"IF(Milestones[[#This Row],[Date de début]]=\"\",1,(Milestones[[#This Row],[Date de fin]]-Milestones[[#This Row],[Date de début]]))","v":1}]
["Mise en œuvre ","Programme de GdP","Attribution du rôle d’agent de sécurité incendie",null,null,"Non commencé",0,null,null,null,{"$f":"IF(Milestones[[#This Row],[Date de début]]=\"\",1,(Milestones[[#This Row],[Date de fin]]-Milestones[[#This Row],[Date de début]]))","v":1}]
["Mise en œuvre ","Programme de GdP","Accès et travail dans un écosystème d’espaces ",null,null,"Non commencé",0,null,null,null,{"$f":"IF(Milestones[[#This Row],[Date de début]]=\"\",1,(Milestones[[#This Row],[Date de fin]]-Milestones[[#This Row],[Date de début]]))","v":1}]
["Mise en œuvre ","Programme de GdP","Milieu de travail axé sur les activités : bureaux partagés ",null,null,"Non commencé",0,null,null,null,{"$f":"IF(Milestones[[#This Row],[Date de début]]=\"\",1,(Milestones[[#This Row],[Date de fin]]-Milestones[[#This Row],[Date de début]]))","v":1}]
["Mise en œuvre ","Programme de GdP","Milieu de travail axé sur les activités: variété de points de travail",null,null,"Non commencé",0,null,null,null,{"$f":"IF(Milestones[[#This Row],[Date de début]]=\"\",1,(Milestones[[#This Row],[Date de fin]]-Milestones[[#This Row],[Date de début]]))","v":1}]
["Mise en œuvre ","Programme de GdP","Milieu de travail axé sur les activités: zones de travail",null,null,"Non commencé",0,null,null,null,{"$f":"IF(Milestones[[#This Row],[Date de début]]=\"\",1,(Milestones[[#This Row],[Date de fin]]-Milestones[[#This Row],[Date de début]]))","v":1}]
["Mise en œuvre ","Programme de GdP","Ergonomie, accessibilité et inclusivité dans tous les points de travail",null,null,"Non commencé",0,null,null,null,{"$f":"IF(Milestones[[#This Row],[Date de début]]=\"\",1,(Milestones[[#This Row],[Date de fin]]-Milestones[[#This Row],[Date de début]]))","v":1}]
["Mise en œuvre ","Programme de GdP","Bureau intelligent (lumières, régulation de la température, stores automatiques, etc.)",null,null,"Non commencé",0,null,null,null,{"$f":"IF(Milestones[[#This Row],[Date de début]]=\"\",1,(Milestones[[#This Row],[Date de fin]]-Milestones[[#This Row],[Date de début]]))","v":1}]
["Mise en œuvre ","Programme de GdP","Utilisation de casiers journaliers",null,null,"Non commencé",0,null,null,null,{"$f":"IF(Milestones[[#This Row],[Date de début]]=\"\",1,(Milestones[[#This Row],[Date de fin]]-Milestones[[#This Row],[Date de début]]))","v":1}]
["Plannification","Programme de GdP","Songage de programmation fonctionelle",null,null,"Non commencé",0,null,null,null,{"$f":"IF(Milestones[[#This Row],[Date de début]]=\"\",1,(Milestones[[#This Row],[Date de fin]]-Milestones[[#This Row],[Date de début]]))","v":1}]
["Plannification","Programme de GdP","Atelier de programmation fonctionnelle",null,null,"Non commencé",0,null,null,null,{"$f":"IF(Milestones[[#This Row],[Date de début]]=\"\",1,(Milestones[[#This Row],[Date de fin]]-Milestones[[#This Row],[Date de début]]))","v":1}]
["Mise en œuvre ","Programme de GdP","Approbation du client pour le design",null,null,"Non commencé",0,null,null,null,{"$f":"IF(Milestones[[#This Row],[Date de début]]=\"\",1,(Milestones[[#This Row],[Date de fin]]-Milestones[[#This Row],[Date de début]]))","v":1}]
[null,null,null,null,null,"Non commencé",0,null,null,null,{"$f":"IF(Milestones[[#This Row],[Date de début]]=\"\",1,(Milestones[[#This Row],[Date de fin]]-Milestones[[#This Row],[Date de début]]))","v":1}]
[null,null,null,null,null,"Non commencé",0,null,null,null,{"$f":"IF(Milestones[[#This Row],[Date de début]]=\"\",1,(Milestones[[#This Row],[Date de fin]]-Milestones[[#This Row],[Date de début]]))","v":1}]
[null,null,null,null,null,"Non commencé",0,null,null,null,{"$f":"IF(Milestones[[#This Row],[Date de début]]=\"\",1,(Milestones[[#This Row],[Date de fin]]-Milestones[[#This Row],[Date de début]]))","v":1}]
[null,null,null,null,null,"Non commencé",0,null,null,null,{"$f":"IF(Milestones[[#This Row],[Date de début]]=\"\",1,(Milestones[[#This Row],[Date de fin]]-Milestones[[#This Row],[Date de début]]))","v":1}]
[null,null,null,null,null,"Non commencé",0,null,null,null,{"$f":"IF(Milestones[[#This Row],[Date de début]]=\"\",1,(Milestones[[#This Row],[Date de fin]]-Milestones[[#This Row],[Date de début]]))","v":1}]
[null,null,null,null,null,"Non commencé",0,null,null,null,{"$f":"IF(Milestones[[#This Row],[Date de début]]=\"\",1,(Milestones[[#This Row],[Date de fin]]-Milestones[[#This Row],[Date de début]]))","v":1}]
[null,null,null,null,null,"Non commencé",0,null,null,null,{"$f":"IF(Milestones[[#This Row],[Date de début]]=\"\",1,(Milestones[[#This Row],[Date de fin]]-Milestones[[#This Row],[Date de début]]))","v":1}]
[null,null,null,null,null,"Non commencé",0,null,null,null,{"$f":"IF(Milestones[[#This Row],[Date de début]]=\"\",1,(Milestones[[#This Row],[Date de fin]]-Milestones[[#This Row],[Date de début]]))","v":1}]
[null,null,null,null,null,"Non commencé",0,null,null,null,{"$f":"IF(Milestones[[#This Row],[Date de début]]=\"\",1,(Milestones[[#This Row],[Date de fin]]-Milestones[[#This Row],[Date de début]]))","v":1}]
[null,null,null,null,null,"Non commencé",0,null,null,null,{"$f":"IF(Milestones[[#This Row],[Date de début]]=\"\",1,(Milestones[[#This Row],[Date de fin]]-Milestones[[#This Row],[Date de début]]))","v":1}]
[null,null,null,null,null,"Non commencé",0,null,null,null,{"$f":"IF(Milestones[[#This Row],[Date de début]]=\"\",1,(Milestones[[#This Row],[Date de fin]]-Milestones[[#This Row],[Date de début]]))","v":1}]
[null,null,null,null,null,"Non commencé",0,null,null,null,{"$f":"IF(Milestones[[#This Row],[Date de début]]=\"\",1,(Milestones[[#This Row],[Date de fin]]-Milestones[[#This Row],[Date de début]]))","v":1}]
[null,null,null,null,null,"Non commencé",0,null,null,null,{"$f":"IF(Milestones[[#This Row],[Date de début]]=\"\",1,(Milestones[[#This Row],[Date de fin]]-Milestones[[#This Row],[Date de début]]))","v":1}]
[null,null,null,null,null,"Non commencé",0,null,null,null,{"$f":"IF(Milestones[[#This Row],[Date de début]]=\"\",1,(Milestones[[#This Row],[Date de fin]]-Milestones[[#This Row],[Date de début]]))","v":1}]
[null,null,null,null,null,"Non commencé",0,null,null,null,{"$f":"IF(Milestones[[#This Row],[Date de début]]=\"\",1,(Milestones[[#This Row],[Date de fin]]-Milestones[[#This Row],[Date de début]]))","v":1}]
[null,null,null,null,null,"Non commencé",0,null,null,null,{"$f":"IF(Milestones[[#This Row],[Date de début]]=\"\",1,(Milestones[[#This Row],[Date de fin]]-Milestones[[#This Row],[Date de début]]))","v":1}]
[null,null,null,null,null,"Non commencé",0,null,null,null,{"$f":"IF(Milestones[[#This Row],[Date de début]]=\"\",1,(Milestones[[#This Row],[Date de fin]]-Milestones[[#This Row],[Date de début]]))","v":1}]
[null,null,null,null,null,"Non commencé",0,null,null,null,{"$f":"IF(Milestones[[#This Row],[Date de début]]=\"\",1,(Milestones[[#This Row],[Date de fin]]-Milestones[[#This Row],[Date de début]]))","v":1}]
[null,null,null,null,null,"Non commencé",0,null,null,null,{"$f":"IF(Milestones[[#This Row],[Date de début]]=\"\",1,(Milestones[[#This Row],[Date de fin]]-Milestones[[#This Row],[Date de début]]))","v":1}]
[null,null,null,null,null,"Non commencé",0,null,null,null,{"$f":"IF(Milestones[[#This Row],[Date de début]]=\"\",1,(Milestones[[#This Row],[Date de fin]]-Milestones[[#This Row],[Date de début]]))","v":1}]
[null,null,null,null,null,"Non commencé",0,null,null,null,{"$f":"IF(Milestones[[#This Row],[Date de début]]=\"\",1,(Milestones[[#This Row],[Date de fin]]-Milestones[[#This Row],[Date de début]]))","v":1}]
[null,null,null,null,null,"Non commencé",0,null,null,null,{"$f":"IF(Milestones[[#This Row],[Date de début]]=\"\",1,(Milestones[[#This Row],[Date de fin]]-Milestones[[#This Row],[Date de début]]))","v":1}]
[null,null,null,null,null,"Non commencé",0,null,null,null,{"$f":"IF(Milestones[[#This Row],[Date de début]]=\"\",1,(Milestones[[#This Row],[Date de fin]]-Milestones[[#This Row],[Date de début]]))","v":1}]
[null,null,null,null,null,"Non commencé",0,null,null,null,{"$f":"IF(Milestones[[#This Row],[Date de début]]=\"\",1,(Milestones[[#This Row],[Date de fin]]-Milestones[[#This Row],[Date de début]]))","v":1}]
[null,null,null,null,null,"Non commencé",0,null,null,null,{"$f":"IF(Milestones[[#This Row],[Date de début]]=\"\",1,(Milestones[[#This Row],[Date de fin]]-Milestones[[#This Row],[Date de début]]))","v":1}]
[null,null,null,null,null,"Non commencé",0,null,null,null,{"$f":"IF(Milestones[[#This Row],[Date de début]]=\"\",1,(Milestones[[#This Row],[Date de fin]]-Milestones[[#This Row],[Date de début]]))","v":1}]
[null,null,null,null,null,"Non commencé",0,null,null,null,{"$f":"IF(Milestones[[#This Row],[Date de début]]=\"\",1,(Milestones[[#This Row],[Date de fin]]-Milestones[[#This Row],[Date de début]]))","v":1}]
[null,null,null,null,null,"Non commencé",0,null,null,null,{"$f":"IF(Milestones[[#This Row],[Date de début]]=\"\",1,(Milestones[[#This Row],[Date de fin]]-Milestones[[#This Row],[Date de début]]))","v":1}]
[null,null,null,null,null,"Non commencé",0,null,null,null,{"$f":"IF(Milestones[[#This Row],[Date de début]]=\"\",1,(Milestones[[#This Row],[Date de fin]]-Milestones[[#This Row],[Date de début]]))","v":1}]
[null,null,null,null,null,"Non commencé",0,null,null,null,{"$f":"IF(Milestones[[#This Row],[Date de début]]=\"\",1,(Milestones[[#This Row],[Date de fin]]-Milestones[[#This Row],[Date de début]]))","v":1}]
[null,null,null,null,null,"Non commencé",0,null,null,null,{"$f":"IF(Milestones[[#This Row],[Date de début]]=\"\",1,(Milestones[[#This Row],[Date de fin]]-Milestones[[#This Row],[Date de début]]))","v":1}]
[null,null,null,null,null,"Non commencé",0,null,null,null,{"$f":"IF(Milestones[[#This Row],[Date de début]]=\"\",1,(Milestones[[#This Row],[Date de fin]]-Milestones[[#This Row],[Date de début]]))","v":1}]
[null,null,null,null,null,"Non commencé",0,null,null,null,{"$f":"IF(Milestones[[#This Row],[Date de début]]=\"\",1,(Milestones[[#This Row],[Date de fin]]-Milestones[[#This Row],[Date de début]]))","v":1}]
[null,null,null,null,null,"Non commencé",0,null,null,null,{"$f":"IF(Milestones[[#This Row],[Date de début]]=\"\",1,(Milestones[[#This Row],[Date de fin]]-Milestones[[#This Row],[Date de début]]))","v":1}]
[null,null,null,null,null,"Non commencé",0,null,null,null,{"$f":"IF(Milestones[[#This Row],[Date de début]]=\"\",1,(Milestones[[#This Row],[Date de fin]]-Milestones[[#This Row],[Date de début]]))","v":1}]
[null,null,null,null,null,"Non commencé",0,null,null,null,{"$f":"IF(Milestones[[#This Row],[Date de début]]=\"\",1,(Milestones[[#This Row],[Date de fin]]-Milestones[[#This Row],[Date de début]]))","v":1}]
[null,null,null,null,null,"Non commencé",0,null,null,null,{"$f":"IF(Milestones[[#This Row],[Date de début]]=\"\",1,(Milestones[[#This Row],[Date de fin]]-Milestones[[#This Row],[Date de début]]))","v":1}]
[null,null,null,null,null,"Non commencé",0,null,null,null,{"$f":"IF(Milestones[[#This Row],[Date de début]]=\"\",1,(Milestones[[#This Row],[Date de fin]]-Milestones[[#This Row],[Date de début]]))","v":1}]
[null,null,null,null,null,"Non commencé",0,null,null,null,{"$f":"IF(Milestones[[#This Row],[Date de début]]=\"\",1,(Milestones[[#This Row],[Date de fin]]-Milestones[[#This Row],[Date de début]]))","v":1}]
[null,null,null,null,null,"Non commencé",0,null,null,null,{"$f":"IF(Milestones[[#This Row],[Date de début]]=\"\",1,(Milestones[[#This Row],[Date de fin]]-Milestones[[#This Row],[Date de début]]))","v":1}]
[null,null,null,null,null,"Non commencé",0,null,null,null,{"$f":"IF(Milestones[[#This Row],[Date de début]]=\"\",1,(Milestones[[#This Row],[Date de fin]]-Milestones[[#This Row],[Date de début]]))","v":1}]

{"sheet":"Suivi des activités de GdC","index":6,"n_rows":14,"n_cols":9,"rows_kept":14,"cut":false,"hidden":false,"merged":[[0,0,0,8],[2,0,3,0],[2,1,3,1],[2,2,3,2],[2,3,3,3],[2,4,3,4],[2,5,3,5],[2,6,2,7],[2,8,3,8]]}
["Suivi des activités de gestion du changement"]
[]
["ACTIVITÉ DE GDC","TYPE D'ACTIVITÉ","OBJECTIF DE LA STRATÉGIE","INDICATEURS","OBJECTIF","MÉTHODE D'ÉVALUATION","COLLECTE DE DONNÉES",null,"MESURES CORRECTIVES POSSIBLES"]
[null,null,null,null,null,null,"Responsabilité","Fréquence"]
["Activités de communication (variées - d'après vos besoins)","Communication","Informer","# de clics sur la page web\n# de visiteurs sur la page web\n# de visiteurs récurrents sur la page web\n# de participants au canal MS Teams\n# de rétroactions reçues\n% de communications par courriel ouvertes/lues",null,"Rapports","Représentant des communications/\nGestionnaire du changement","Toutes les deux semaines"]
["Séance d’information ouverte avec les employés","Mobilisation","Impliquer","# de participants\n# de questions reçues dans le chat/platforme Q&R\n# de rétroactions reçues","[EXEMPLE : taux de participation de 60 % pour les employés, de 90 % pour les gestionnaires de personnel et de 100 % pour les cadres supérieurs.]","Observation","Gestionnaire du changement","Pendant et après chaque séance d'information ouverte"]
["Nomination des salles de conférence","Mobilisation","Impliquer","# de participants \n# de noms reçus",null,"Observation","Gestionnaire du changement","Pendant et après l'activité"]
["Normes communautaires pour le nouveau milieu de travail (étiquette)","Mobilisation","Impliquer","# de participants\n# de questions reçues",null,"Observation","Gestionnaire du changement","Tous les mois"]
["Chartes d'équipe","Mobilisation","Impliquer","# de participants",null,"Observation","Gestionnaires du personnel","Pendant l'activité"]
["Visite du nouveau milieu de travail","Mobilisation","Impliquer","# de participants\n# de rétroactions reçues",null,"Mini questionnaire","Gestionnaire du changement","Pendant et après l'activité"]
["Cérémonie d'ouverture hybride","Mobilisation","Impliquer","# de participants en personne\n# de participants virtuels\n# de participants aux visites en personne\n# de rétroactions reçues",null,"Observation","Gestionnaire du changement","Pendant et après l'activité"]
["Activités de formation (variées - d'après vos besoins)","Formation","Équiper","# de participants\n# de rétroactions reçues",null,"Mini questionnaire","Gestionnaire du changement","Pendant et après l'activité"]
["Présentation « une journée dans la vie »","Formation","Équiper","# def participants\n# de rétroactions reçues",null,"Mini questionnaire","Gestionnaire du changement","Pendant et après l'activité"]
["Invitation pour le sondage sur la performance du milieu de travail","Communication","Renforcer","# de répondants au sondage",null,"Rapports","SPAC","Après la fermeture du sondage"]

{"sheet":"PRET Eval","index":7,"n_rows":33,"n_cols":4,"rows_kept":33,"cut":false,"hidden":true,"merged":[[0,0,0,3],[18,0,18,2],[21,0,21,2],[26,0,26,2]]}
["Résultats - Resources clés du projet"]
[null,"CONTRIBUTEURS","CAPACITÉ À SOUTENIR","SOUTIEN POUR LE PROJET"]
["Project manager/accomodations lead",{"$f":"COUNTIF([1]PRET!B8, \"\")","v":1},{"$f":"IF([1]PRET!D8=\"low\",1, )","v":0},{"$f":"IF([1]PRET!G8=\"resister\",1, )","v":0}]
["Project sponsor ",{"$f":"COUNTIF([1]PRET!B12, \"\")","v":1},{"$f":"IF([1]PRET!D12=\"low\",1, )","v":0},{"$f":"IF([1]PRET!G12=\"resister\",1, )","v":0}]
["Executive sponsor",{"$f":"COUNTIF([1]PRET!B16, \"\")","v":1},{"$f":"IF([1]PRET!D16=\"low\",1, )","v":0},{"$f":"IF([1]PRET!G16=\"resister\",1, )","v":0}]
["Change manager",{"$f":"COUNTIF([1]PRET!B20, \"\")","v":1},{"$f":"IF([1]PRET!D20=\"low\",1, )","v":0},{"$f":"IF([1]PRET!G20=\"resister\",1, )","v":0}]
["Communications representative",{"$f":"COUNTIF([1]PRET!B24, \"\")","v":1},{"$f":"IF([1]PRET!D24=\"low\",1, )","v":0},{"$f":"IF([1]PRET!G24=\"resister\",1, )","v":0}]
["Facilities/Design representative",{"$f":"COUNTIF([1]PRET!B28, \"\")","v":1},{"$f":"IF([1]PRET!D28=\"low\",1, )","v":0},{"$f":"IF([1]PRET!G28=\"resister\",1, )","v":0}]
["IM representative",{"$f":"COUNTIF([1]PRET!B32, \"\")","v":1},{"$f":"IF([1]PRET!D32=\"low\",1, )","v":0},{"$f":"IF([1]PRET!G32=\"resister\",1, )","v":0}]
["IT representative",{"$f":"COUNTIF([1]PRET!B36, \"\")","v":1},{"$f":"IF([1]PRET!D36=\"low\",1, )","v":0},{"$f":"IF([1]PRET!G36=\"resister\",1, )","v":0}]
["HR representative",{"$f":"COUNTIF([1]PRET!B40, \"\")","v":1},{"$f":"IF([1]PRET!D40=\"low\",1, )","v":0},{"$f":"IF([1]PRET!G40=\"resister\",1, )","v":0}]
["Security representative",{"$f":"COUNTIF([1]PRET!B44, \"\")","v":1},{"$f":"IF([1]PRET!D44=\"low\",1, )","v":0},{"$f":"IF([1]PRET!G44=\"resister\",1, )","v":0}]
["OHS representative",{"$f":"COUNTIF([1]PRET!B48, \"\")","v":1},{"$f":"IF([1]PRET!D48=\"low\",1, )","v":0},{"$f":"IF([1]PRET!G48=\"resister\",1, )","v":0}]
["Indigenous Employee Group",{"$f":"COUNTIF([1]PRET!B52, \"\")","v":1},{"$f":"IF([1]PRET!D52=\"low\",1, )","v":0},{"$f":"IF([1]PRET!G52=\"resister\",1, )","v":0}]
["Diversity, Equity, and Inclusion Employee Group(s)",{"$f":"COUNTIF([1]PRET!B56, \"\")","v":1},{"$f":"IF([1]PRET!D56=\"low\",1, )","v":0},{"$f":"IF([1]PRET!G56=\"resister\",1, )","v":0}]
[null,{"$f":"SUM(B3:B15)","v":13},{"$f":"SUM(C3:C15)","v":0},{"$f":"SUM(D3:D15)","v":0}]
[null,{"$f":"SUM(B16:D16)","v":13},"OVERALL SCORE "]
[]
["Vision organisationnelle et de projet"]
["En cochant cette case, vous confirmez que votre parrain de projet a approuvé la vision du projet. ","no",{"$f":"_xlfn.IFS(B20=\"yes\", 0,B20=\"no\",1)","v":1}]
[]
["État de préparation à la gestion de projet"]
["Parrainage ",{"$f":"_xlfn.IFS([1]PRET!C71=\"Our strategy is somewhat supported \", 1,[1]PRET!C71=\"Our strategy is not supported \",1,[1]PRET!C71=\"Our strategy is supported \",0)","v":{"$error":"#N/A"}},{"$f":"_xlfn.IFS([1]PRET!C72=\"the sponsor does not have the necessary authority \", 1,[1]PRET!C72=\"the sponsor somewhat has the necessary authority\",1,[1]PRET!C72=\"The sponsor has necessary authority\",0)","v":{"$error":"#N/A"}}]
["Cadres supérieurs  ",{"$f":"_xlfn.IFS([1]PRET!C75=\"workplace modernization is not a priority to our leaders\", 1,[1]PRET!C75=\"workplace modernization is somewhat a priority to our leaders\",1,[1]PRET!C75=\"workplace modernization is a priority to our leaders\",0)","v":{"$error":"#N/A"}},{"$f":"_xlfn.IFS([1]PRET!C76=\"leaders are not ready to communicate\", 1,[1]PRET!C76=\"leaders are somewhat ready to communicate\",1,[1]PRET!C76=\"Leaders are ready to communicate\",0)","v":{"$error":"#N/A"}}]
["Secteurs habilitants",{"$f":"_xlfn.IFS([1]PRET!C79=\"We do not have a modernization strategy \", 1,[1]PRET!C79=\"We somewhat have a modernization strategy \",1,[1]PRET!C79=\"We have a modernization strategy \",0)","v":{"$error":"#N/A"}},{"$f":"_xlfn.IFS([1]PRET!C80=\"We don’t have the necessary resources \", 1,[1]PRET!C80=\"We somewhat have the necessary resources \",1,[1]PRET!C80=\"We have the necessary resources \",0)","v":{"$error":"#N/A"}}]
["Gestion du changement, communication et formation",{"$f":"_xlfn.IFS([1]PRET!C83=\"We do not have a structured change management approach\", 1,[1]PRET!C83=\"We somewhat have a structured change management approach\",1,[1]PRET!C83=\"We have a structured change management approach\",0)","v":{"$error":"#N/A"}},{"$f":"_xlfn.IFS([1]PRET!C84=\"We don’t have the necessary resources \", 1,[1]PRET!C84=\"We somewhat have the necessary resources \",1,[1]PRET!C84=\"We have the necessary resources \",0)","v":{"$error":"#N/A"}}]
["État de préparation au changement"]
["Historique du changement",{"$f":"_xlfn.IFS([1]PRET!C88=\"Our history of change is not successful \", 1,[1]PRET!C88=\"Our history of change is somewhat successful \",1,[1]PRET!C88=\"Our history of change is very successful \",0)","v":{"$error":"#N/A"}},{"$f":"_xlfn.IFS([1]PRET!C89=\"Employees did not embrace past changes, and almost always reverted to old ways\",1,[1]PRET!C89=\"Employees did not always embrace the past changes, and sometimes reverted to old ways\",1,[1]PRET!C89=\"Employees embraced the changes\",0)","v":{"$error":"#N/A"}}]
["Culture d'innovation ",{"$f":"_xlfn.IFS([1]PRET!C92=\"We are not open\", 1,[1]PRET!C92=\"We are somewhat open \",1,[1]PRET!C92=\"We are open\",0)","v":{"$error":"#N/A"}},{"$f":"_xlfn.IFS([1]PRET!C93=\"Employees are not rewarded \", 1,[1]PRET!C93=\"Employees are somewhat rewarded \",1,[1]PRET!C93=\"Employees are rewarded \",0)","v":{"$error":"#N/A"}}]
["Cadres supérieurs et gestionnaires de personnel",{"$f":"_xlfn.IFS([1]PRET!C96=\"Senior leaders and managers are not very skilled \", 1,[1]PRET!C96=\"Senior leaders and managers are somewhat skilled \",1,[1]PRET!C96=\"Senior leaders and managers are highly skilled \",0)","v":{"$error":"#N/A"}},{"$f":"_xlfn.IFS([1]PRET!C97=\"Performance in not evaluated based on results and based on employee's presence\",1,[1]PRET!C97=\"Performance is evaluated inconsistently, sometimes based on results and sometimes based on employees' presence\",1,[1]PRET!C97=\"Performance is evaluated based on results and not based on employees' presence\",0)","v":{"$error":"#N/A"}}]
["Travail hybride",{"$f":"_xlfn.IFS([1]PRET!C100=\"Employees are not encouraged, trusted and empowered\", 1,[1]PRET!C100=\"Employees are sometimes encouraged, trusted and empowered\",1,[1]PRET!C100=\"Employees are encouraged, trusted and empowered\",0)","v":{"$error":"#N/A"}},{"$f":"_xlfn.IFS([1]PRET!C101=\"Remote work is not supported \", 1,[1]PRET!C101=\"Remote work is somewhat supported \",1,[1]PRET!C101=\"Remote work is supported \",0)","v":{"$error":"#N/A"}}]
[null,{"$f":"SUM(B23:B31)","v":{"$error":"#N/A"}},{"$f":"SUM(C23:C31)","v":{"$error":"#N/A"}}]
[null,{"$f":"SUM(B32:C32)","v":{"$error":"#N/A"}},"OVERALL SCORE"]

{"sheet":"Liste de données PRET","index":8,"n_rows":62,"n_cols":2,"rows_kept":62,"cut":false,"hidden":true,"merged":[[5,0,5,1],[25,0,25,1],[30,0,30,1],[35,0,35,1],[40,0,40,1],[10,0,10,1],[20,0,20,1],[15,0,15,1]]}
[]
[]
[]
[]
[]
["Parrainage"]
["Notre stratégie est soutenue","Le parrain a l'authorité nécessaire"]
["Notre stratégie est quelque peu soutenue","Le parrain n'a pas complètement l'authorité nécessaire"]
["Notre stratégie est peu soutenue","Le parrain n'a pas l'authorité nécessaire"]
[]
["Cadres supérieur"]
["La modernisation du milieu de travail est une priorité pour nos cadres supérieurs","Les cadres supérieurs sont prêts à communiquer"]
["La modernisation du milieu de travail est quelque peu une priorité pour nos cadres supérieurs","Les cadres supérieurs ne sont pas entièrement prêts à communiquer"]
["La modernisation du milieu de travail n'est pas une priorité pour nos cadres supérieurs","Les cadres supérieurs ne sont pas prêts à communiquer"]
[]
["Secteurs habilitants"]
["Nous avons une stratégie de modernisation","Nous disposons des ressources nécessaires"]
["Nous avons une stratégie de modernisation partielle","Nous disposons d'une partie des ressources nécessaires"]
["Nous n'avons pas de stratégie de modernisation","Nous n'avons pas les ressources nécessaires"]
[]
["Gestion du changement, communication et formation"]
["Nous avons une approche structurée de gestion du changement","Nous disposons des ressources nécessaires"]
["Nous avons une approche quelque peu structurée de gestion du changement","Nous disposons d'une partie des ressources nécessaires"]
["Nous n'avons pas d'approche structurée de gestion du changement","Nous n'avons pas les ressources nécessaires"]
[]
["Historique du changement"]
["Notre organisation a eu du succès avec des changements précédents","Les employés ont bien accueilli les changements passés et ne sont pas revenus aux anciennes méthodes"]
["Notre organisation a eu quelque peu de succès avec des changements précédents","Les employés ont quelque peu accueilli les changements passés et sont parfois revenus aux anciennes méthodes"]
["Notre organisation n'a pas eu de succès avec des changements précédents","Les employés n'ont pas bien accueilli les changements passés et sont revenus aux anciennes méthodes"]
[]
["Culture d'innovation"]
["Notre organisation est ouverte","Les employés sont récompensés"]
["Notre organisation est quelque peu ouverte","Les employés sont quelque peu récompensés"]
["Notre organisation n'est pas ouverte","Les employés ne sont pas récompensés"]
[]
["Cadres supérieurs et gestionnaires de personnel"]
["Les cadres supérieurs et les gestionnaires de personnel sont hautement qualifiés","Le rendement est évalué en fonction des résultats et non en fonction de la présence des employés"]
["Les cadres supérieurs et les gestionnaires de personnel sont partiellement qualifiés","Le rendement n'est pas évalué de façon consistante: defois en fonction des résultats et d'autres fois en fonction de la présence des employés"]
["Les cadres supérieurs et les gestionnaires de personnel ne sont pas qualifiés","Le rendement n'est pas évalué en fonction des résultats mais plutôt en fonction de la présence des employés"]
[]
["Travail hybride"]
["Notre organisation encourage, habilite et est confiante en nos employés ","Le travail à distance est encouragé "]
["Notre organisation fait parfois preuve d'encouragement, d'habilitation et de confiance envers nos employés ","Le travail à distance est parfois encouragé "]
["Notre organisation n'encourage pas, n'habilite pas et n'est pas confiante en nos employés ","Le travail à distance n'est pas encouragé "]
[]
["STATUS "]
["N/A"]
["Complété"]
["En cours"]
["Non commencé"]
[]
["Basses","Bas"]
["Moyennes ","Moyen"]
["Élevées","Élevé"]
[]
["Enthusiaste","Basse"]
["Neutre","Moyenne"]
["Resistant","Élevée"]
[]
["Concernés (C)"]
["Concernés indirectement (CI)  "]
["Parrains (P)"]

{"sheet":"Liste de données Plan intégré","index":9,"n_rows":13,"n_cols":2,"rows_kept":13,"cut":false,"hidden":true,"merged":[]}
["Phase"]
["Plannification"]
["Mise en œuvre "]
["Après l'aménagement"]
[]
[]
[]
[null,"Categorie"]
[null,"Programme de GdC"]
[null,"Programme de GdP"]
[null,"Communication"]
[null,"Mobilisation"]
[null,"Formation"]